fUSD/lending_fUSD_20240712
["ID","MTS","AMOUNT","RATE_DAILY","PERIOD"]
[331856198,1720794699225,-500.0,0.00014191,2]
[331856199,1720794699234,-819.84,0.00014191,2]
[331856200,1720794699244,-500.0,0.00014191,2]
[331856201,1720794699253,-500.0,0.00014191,2]
[331856202,1720794699262,-1064.23,0.00014191,2]
[331856203,1720794699272,-500.0,0.00014191,2]
[331856204,1720794699282,-4271.54,0.00014191,2]
[331856205,1720794699291,-1838.14,0.00014191,2]
[331856206,1720794699301,-485.17205286,0.00014191,2]
[331856207,1720794699311,-989.52,0.00014191,2]
[331856208,1720794699320,-500.0,0.00014191,2]
[331856209,1720794699330,-500.0,0.00014191,2]
[331856210,1720794699340,-1038.55,0.00014191,2]
[331856211,1720794699352,-835.73,0.00014191,2]
[331856212,1720794699361,-500.0,0.00014191,2]
[331856213,1720794699371,-720.1,0.00014191,2]
[331856214,1720794699381,-903.17,0.00014191,2]
[331856215,1720794699390,-948.98,0.00014191,2]
[331856216,1720794699399,-852.64,0.00014191,2]
[331856217,1720794699409,-500.0,0.00014191,2]
[331856218,1720794699420,-500.0,0.00014191,2]
[331856219,1720794699431,-500.0,0.00014191,2]
[331856220,1720794699442,-540.42,0.00014191,2]
[331856221,1720794699452,-2299.04,0.00014191,2]
[331856222,1720794699463,-1111.09,0.00014191,2]
[331856223,1720794699473,-847.27,0.00014191,2]
[331856224,1720794699484,-500.0,0.00014191,2]
[331856225,1720794699493,-563.5,0.00014191,2]
[331856226,1720794699502,-1080.3,0.00014191,2]
[331856227,1720794699512,-500.0,0.00014191,2]
[331856228,1720794699522,-792.46,0.00014191,2]
[331856229,1720794699532,-1087.76,0.00014191,2]
[331856230,1720794699542,-777.64,0.00014191,2]
[331856231,1720794699551,-500.0,0.00014191,2]
[331856232,1720794699561,-500.0,0.00014191,2]
[331856233,1720794699570,-859.86,0.00014191,2]
[331856234,1720794699580,-595.98,0.00014191,2]
[331856235,1720794699589,-500.0,0.00014191,2]
[331856236,1720794699599,-966.7,0.00014191,2]
[331856237,1720794699609,-770.6,0.00014191,2]
[331856238,1720794699619,-500.0,0.00014191,2]
[331856239,1720794699628,-500.0,0.00014191,2]
[331856240,1720794699638,-1183.71,0.00014191,2]
[331856241,1720794699647,-1241.85,0.00014191,2]
[331856242,1720794699656,-500.0,0.00014191,2]
[331856243,1720794699665,-1004.68,0.00014191,2]
[331856244,1720794699675,-500.0,0.00014191,2]
[331856245,1720794699684,-955.42,0.00014191,2]
[331856246,1720794699694,-1077.37,0.00014191,2]
[331856247,1720794699703,-500.0,0.00014191,2]
[331856248,1720794699713,-1386.2,0.00014191,2]
[331856249,1720794699723,-500.0,0.00014191,2]
[331856250,1720794699733,-500.0,0.00014191,2]
[331856251,1720794699743,-500.0,0.00014191,2]
[331856252,1720794699753,-581.34,0.00014191,2]
[331856253,1720794699762,-500.0,0.00014191,2]
[331856254,1720794699772,-500.0,0.00014191,2]
[331856255,1720794699782,-533.16,0.00014191,2]
[331856256,1720794699792,-1428.78,0.00014191,2]
[331856257,1720794699801,-500.0,0.00014191,2]
[331856258,1720794699811,-500.0,0.00014191,2]
[331856259,1720794699821,-742.08,0.00014191,2]
[331856260,1720794699831,-1248.36,0.00014191,2]
[331856261,1720794699840,-1524.13,0.00014191,2]
[331856262,1720794699851,-500.0,0.00014191,2]
[331856263,1720794699860,-1206.67,0.00014191,2]
[331856264,1720794699871,-500.0,0.00014191,2]
[331856265,1720794699880,-500.0,0.00014191,2]
[331856266,1720794699890,-765.74,0.00014191,2]
[331856267,1720794699900,-500.0,0.00014191,2]
[331856268,1720794699910,-654.42,0.00014191,2]
[331856269,1720794699919,-500.0,0.00014191,2]
[331856270,1720794699929,-1158.32,0.00014191,2]
[331856271,1720794699940,-517.72,0.00014191,2]
[331856272,1720794699951,-985.8,0.00014191,2]
[331856273,1720794699961,-1158.97,0.00014191,2]
[331856274,1720794699974,-1303.35,0.00014191,2]
[331856275,1720794699987,-642.75,0.00014191,2]
[331856276,1720794699997,-675.59,0.00014191,2]
[331856277,1720794700006,-500.0,0.00014191,2]
[331856278,1720794700016,-500.0,0.00014191,2]
[331856279,1720794700027,-953.14,0.00014191,2]
[331856280,1720794700037,-1174.91,0.00014191,2]
[331856281,1720794700047,-500.0,0.00014191,2]
[331856282,1720794700057,-500.0,0.00014191,2]
[331856283,1720794700066,-502.48,0.00014191,2]
[331856284,1720794700077,-712.64,0.00014191,2]
[331856285,1720794700090,-839.78,0.00014191,2]
[331856286,1720794700100,-1198.74,0.00014191,2]
[331856287,1720794700109,-504.32,0.00014191,2]
[331856288,1720794700119,-500.0,0.00014191,2]
[331856289,1720794700130,-500.0,0.00014191,2]
[331856290,1720794700306,-500.0,0.00014191,2]
[331856291,1720794700317,-1168.03,0.00014191,2]
[331856292,1720794700327,-1010.06,0.00014191,2]
[331856293,1720794700336,-642.47,0.00014191,2]
[331856294,1720794700346,-748.91,0.00014191,2]
[331856295,1720794700356,-551.78,0.00014191,2]
[331856296,1720794700366,-523.44,0.00014191,2]
[331856297,1720794700376,-500.0,0.00014191,2]
[331856298,1720794700387,-500.0,0.00014191,2]
[331856299,1720794700397,-822.71,0.00014191,2]
[331856300,1720794700407,-500.0,0.00014191,2]
[331856301,1720794700417,-500.0,0.00014191,2]
[331856302,1720794700427,-697.55,0.00014191,2]
[331856303,1720794700437,-500.0,0.00014191,2]
[331856304,1720794700447,-500.0,0.00014191,2]
[331856305,1720794700457,-500.0,0.00014191,2]
[331856306,1720794700470,-500.0,0.00014191,2]
[331856307,1720794700481,-712.55,0.00014191,2]
[331856308,1720794700490,-500.0,0.00014191,2]
[331856309,1720794700500,-1375.16,0.00014191,2]
[331856310,1720794700511,-500.0,0.00014191,2]
[331856311,1720794700521,-894.92,0.00014191,2]
[331856312,1720794700531,-1385.78,0.00014191,2]
[331856313,1720794700540,-1435.7,0.00014191,2]
[331856314,1720794700550,-500.0,0.00014191,2]
[331856315,1720794700560,-500.0,0.00014191,2]
[331856316,1720794700569,-500.0,0.00014191,2]
[331856317,1720794700580,-500.0,0.00014191,2]
[331856318,1720794700590,-768.75,0.00014191,2]
[331856319,1720794700600,-716.79,0.00014191,2]
[331856320,1720794700611,-1100.08,0.00014191,2]
[331856321,1720794700621,-630.92,0.00014191,2]
[331856322,1720794700631,-675.75,0.00014191,2]
[331856323,1720794700641,-500.0,0.00014191,2]
[331856324,1720794700651,-566.06,0.00014191,2]
[331856325,1720794700661,-1310.79,0.00014191,2]
[331856326,1720794700670,-500.0,0.00014191,2]
[331856327,1720794700680,-500.0,0.00014191,2]
[331856328,1720794700690,-749.37,0.00014191,2]
[331856329,1720794700699,-1202.91,0.00014191,2]
[331856330,1720794700709,-511.15,0.00014191,2]
[331856331,1720794700720,-2219.16,0.00014191,2]
[331856332,1720794700730,-589.09,0.00014191,2]
[331856333,1720794700740,-1072.56,0.00014191,2]
[331856334,1720794700750,-500.0,0.00014191,2]
[331856335,1720794700759,-500.0,0.00014191,2]
[331856336,1720794700768,-500.0,0.00014191,2]
[331856337,1720794700778,-6883.09,0.00014191,2]
[331856338,1720794700788,-1509.04,0.00014191,2]
[331856339,1720794700798,-1321.77,0.00014191,2]
[331856340,1720794700807,-636.44,0.00014191,2]
[331856341,1720794700817,-500.0,0.00014191,2]
[331856342,1720794700827,-500.0,0.00014191,2]
[331856343,1720794700837,-500.0,0.00014191,2]
[331856344,1720794700846,-500.0,0.00014191,2]
[331856345,1720794700856,-500.0,0.00014191,2]
[331856346,1720794700865,-500.0,0.00014191,2]
[331856347,1720794700875,-150.0,0.00014203,2]
[331856348,1720794700884,-1200.0,0.00014203,2]
[331856349,1720794700893,-802.996467,0.00014223,2]
[331856350,1720794700903,-381.14311,0.00014223,2]
[331856351,1720794700912,-162.62935,0.00014223,2]
[331856352,1720794700922,-273.286825,0.00014223,2]
[331856353,1720794700931,-150.071927,0.00014223,2]
[331856354,1720794700940,-374.353208,0.00014223,2]
[331856355,1720794700949,-253.08909,0.00014223,2]
[331856356,1720794700959,-229.993097,0.00014223,2]
[331856357,1720794700969,-161.24534363,0.00014226,2]
[331856358,1720794700979,-200.0,0.00014226,2]
[331856359,1720794700989,-150.0,0.00014244,2]
[331856360,1720794700998,-500.0,0.00014245,2]
[331856361,1720794701008,-531.42,0.00014245,2]
[331856362,1720794701018,-588.13,0.00014245,2]
[331856363,1720794701028,-500.0,0.00014245,2]
[331856364,1720794701038,-500.0,0.00014245,2]
[331856365,1720794701048,-624.05,0.00014245,2]
[331856366,1720794701058,-500.0,0.00014245,2]
[331856367,1720794701068,-500.0,0.00014245,2]
[331856368,1720794701078,-500.0,0.00014245,2]
[331856369,1720794701091,-500.0,0.00014245,2]
[331856370,1720794701101,-500.0,0.00014245,2]
[331856371,1720794701112,-500.0,0.00014245,2]
[331856372,1720794701122,-500.0,0.00014245,2]
[331856373,1720794701133,-634.55,0.00014245,2]
[331856374,1720794701143,-677.95,0.00014245,2]
[331856375,1720794701153,-500.0,0.00014245,2]
[331856376,1720794701164,-500.0,0.00014245,2]
[331856377,1720794701174,-500.0,0.00014245,2]
[331856378,1720794701183,-500.0,0.00014245,2]
[331856379,1720794701193,-500.0,0.00014245,2]
[331856380,1720794701202,-500.0,0.00014245,2]
[331856381,1720794701211,-500.0,0.00014245,2]
[331856382,1720794701223,-155.81861335,0.00014245,2]
[331856383,1720794701234,-252.86063287,0.00014245,2]
[331856384,1720794701243,-285.32053579,0.00014245,2]
[331856385,1720794701253,-500.0,0.00014245,2]
[331856386,1720794701263,-500.0,0.00014245,2]
[331856387,1720794701272,-500.0,0.00014245,2]
[331856388,1720794701281,-586.38,0.00014245,2]
[331856389,1720794701291,-500.0,0.00014245,2]
[331856390,1720794701300,-500.0,0.00014245,2]
[331856391,1720794701309,-819.14,0.00014245,2]
[331856392,1720794701319,-806.25,0.00014245,2]
[331856393,1720794701328,-500.0,0.00014245,2]
[331856394,1720794701338,-500.0,0.00014245,2]
[331856395,1720794701348,-500.0,0.00014245,2]
[331856396,1720794701357,-500.0,0.00014245,2]
[331856397,1720794701367,-500.0,0.00014245,2]
[331856398,1720794701376,-500.0,0.00014245,2]
[331856399,1720794701385,-500.0,0.00014245,2]
[331856400,1720794701394,-500.0,0.00014245,2]
[331856401,1720794701403,-691.25,0.00014245,2]
[331856402,1720794701413,-710.01,0.00014245,2]
[331856403,1720794701422,-870.72,0.00014245,2]
[331856404,1720794701432,-500.0,0.00014245,2]
[331856405,1720794701442,-500.0,0.00014245,2]
[331856406,1720794701451,-500.0,0.00014245,2]
[331856407,1720794701460,-500.0,0.00014245,2]
[331856408,1720794701471,-500.0,0.00014245,2]
[331856409,1720794701480,-500.0,0.00014245,2]
[331856410,1720794701489,-500.0,0.00014245,2]
[331856411,1720794701499,-500.0,0.00014245,2]
[331856412,1720794701509,-500.0,0.00014245,2]
[331856413,1720794701519,-500.0,0.00014245,2]
[331856414,1720794701528,-500.0,0.00014245,2]
[331856415,1720794701538,-570.65,0.00014245,2]
[331856416,1720794701547,-582.03,0.00014245,2]
[331856417,1720794701555,-506.37,0.00014245,2]
[331856418,1720794701564,-500.0,0.00014245,2]
[331856419,1720794701574,-497.57044136,0.00014245,2]
[331856420,1720794701584,-500.0,0.00014245,2]
[331856421,1720794701593,-303.72576031,0.00014245,2]
[331856422,1720794701602,-293.0,0.00014245,2]
[331856423,1720794701611,-500.0,0.00014245,2]
[331856424,1720794701621,-170.68461021,0.00014245,2]
[331856425,1720794701630,-500.0,0.00014245,2]
[331856426,1720794701639,-500.0,0.00014245,2]
[331856427,1720794701648,-500.0,0.00014245,2]
[331856428,1720794701658,-500.0,0.00014245,2]
[331856429,1720794701667,-646.31,0.00014245,2]
[331856430,1720794701676,-500.0,0.00014245,2]
[331856431,1720794701686,-500.0,0.00014245,2]
[331856432,1720794701696,-500.0,0.00014245,2]
[331856433,1720794701705,-559.09,0.00014245,2]
[331856434,1720794701715,-500.0,0.00014245,2]
[331856435,1720794701725,-500.0,0.00014245,2]
[331856436,1720794701735,-577.19,0.00014245,2]
[331856437,1720794701744,-560.07,0.00014245,2]
[331856438,1720794701754,-1091.77,0.00014245,2]
[331856439,1720794701763,-500.0,0.00014245,2]
[331856440,1720794701774,-228.01908745,0.00014245,2]
[331856441,1720794701783,-500.0,0.00014245,2]
[331856442,1720794701792,-500.0,0.00014245,2]
[331856443,1720794701801,-500.0,0.00014245,2]
[331856444,1720794701811,-500.0,0.00014245,2]
[331856445,1720794701821,-411.45289015,0.00014245,2]
[331856446,1720794701831,-520.68135982,0.00014245,2]
[331856447,1720794701840,-558.7,0.00014245,2]
[331856448,1720794701850,-500.0,0.00014245,2]
[331856449,1720794701860,-500.0,0.00014245,2]
[331856450,1720794701869,-500.0,0.00014245,2]
[331856451,1720794701878,-646.77768624,0.00014245,2]
[331856452,1720794701887,-500.0,0.00014245,2]
[331856453,1720794701897,-500.0,0.00014245,2]
[331856454,1720794701907,-500.0,0.00014245,2]
[331856455,1720794701916,-500.0,0.00014245,2]
[331856456,1720794701926,-500.0,0.00014245,2]
[331856457,1720794701936,-500.0,0.00014245,2]
[331856458,1720794701946,-566.18,0.00014245,2]
[331856459,1720794701957,-500.0,0.00014245,2]
[331856460,1720794701967,-500.0,0.00014245,2]
[331856461,1720794701977,-500.0,0.00014245,2]
[331856462,1720794701987,-557.9,0.00014245,2]
[331856463,1720794701996,-500.0,0.00014245,2]
[331856464,1720794702006,-500.0,0.00014246,2]
[331856465,1720794702015,-524.11,0.00014246,2]
[331856466,1720794702024,-798.11,0.00014246,2]
[331856467,1720794702034,-500.0,0.00014246,2]
[331856468,1720794702044,-543.87,0.00014246,2]
[331856469,1720794702055,-500.0,0.00014246,2]
[331856470,1720794702066,-714.43,0.00014246,2]
[331856471,1720794702076,-717.24,0.00014246,2]
[331856472,1720794702090,-808.16,0.00014246,2]
[331856473,1720794702099,-574.63,0.00014246,2]
[331856474,1720794702108,-625.21,0.00014246,2]
[331856475,1720794702118,-945.63,0.00014246,2]
[331856476,1720794702130,-500.0,0.00014246,2]
[331856477,1720794702140,-500.0,0.00014246,2]
[331856478,1720794702149,-500.0,0.00014246,2]
[331856479,1720794702159,-677.22,0.00014246,2]
[331856480,1720794702168,-500.0,0.00014246,2]
[331856481,1720794702178,-500.0,0.00014246,2]
[331856482,1720794702188,-567.5,0.00014246,2]
[331856483,1720794702198,-799.61,0.00014246,2]
[331856484,1720794702208,-500.0,0.00014246,2]
[331856485,1720794702217,-500.0,0.00014246,2]
[331856486,1720794702226,-500.0,0.00014246,2]
[331856487,1720794702235,-500.0,0.00014246,2]
[331856488,1720794702245,-500.0,0.00014246,2]
[331856489,1720794702255,-743.72,0.00014246,2]
[331856490,1720794702264,-500.0,0.00014246,2]
[331856491,1720794702273,-500.0,0.00014246,2]
[331856492,1720794702282,-500.0,0.00014246,2]
[331856493,1720794702291,-500.0,0.00014246,2]
[331856494,1720794702300,-370.07800391,0.00014246,2]
[331856495,1720794702309,-608.66,0.00014246,2]
[331856496,1720794702319,-500.0,0.00014246,2]
[331856497,1720794702327,-500.0,0.00014246,2]
[331856498,1720794702337,-785.46,0.00014246,2]
[331856499,1720794702347,-506.96,0.00014246,2]
[331856500,1720794702356,-500.0,0.00014246,2]
[331856501,1720794702366,-523.01,0.00014246,2]
[331856502,1720794702376,-532.23,0.00014246,2]
[331856503,1720794702385,-659.11,0.00014246,2]
[331856504,1720794702394,-500.0,0.00014246,2]
[331856505,1720794702402,-928.6,0.00014246,2]
[331856506,1720794702412,-500.0,0.00014246,2]
[331856507,1720794702421,-857.04,0.00014246,2]
[331856508,1720794702431,-536.84,0.00014246,2]
[331856509,1720794702439,-1012.71,0.00014246,2]
[331856510,1720794702449,-500.0,0.00014246,2]
[331856511,1720794702458,-500.0,0.00014246,2]
[331856512,1720794702468,-787.1,0.00014246,2]
[331856513,1720794702477,-500.0,0.00014246,2]
[331856514,1720794702486,-500.0,0.00014246,2]
[331856515,1720794702495,-880.19,0.00014246,2]
[331856516,1720794702504,-545.56,0.00014246,2]
[331856517,1720794702513,-500.0,0.00014246,2]
[331856518,1720794702523,-714.66,0.00014246,2]
[331856519,1720794702532,-500.0,0.00014246,2]
[331856520,1720794702541,-500.0,0.00014246,2]
[331856521,1720794702550,-500.0,0.00014246,2]
[331856522,1720794702559,-633.29,0.00014246,2]
[331856523,1720794702568,-728.52,0.00014246,2]
[331856524,1720794702577,-329.15084648,0.00014246,2]
[331856525,1720794702586,-669.08,0.00014246,2]
[331856526,1720794702595,-500.0,0.00014246,2]
[331856527,1720794702605,-500.0,0.00014246,2]
[331856528,1720794702614,-718.04,0.00014246,2]
[331856529,1720794702624,-500.0,0.00014246,2]
[331856530,1720794702634,-500.0,0.00014246,2]
[331856531,1720794702644,-500.0,0.00014246,2]
[331856532,1720794702654,-662.74,0.00014246,2]
[331856533,1720794702663,-605.31,0.00014246,2]
[331856534,1720794702673,-612.82,0.00014246,2]
[331856535,1720794702683,-564.04,0.00014246,2]
[331856536,1720794702692,-840.15,0.00014246,2]
[331856537,1720794702701,-500.0,0.00014246,2]
[331856538,1720794702711,-976.09,0.00014246,2]
[331856539,1720794702720,-883.19,0.00014246,2]
[331856540,1720794702729,-421.77765941,0.00014246,2]
[331856541,1720794702739,-518.94,0.00014246,2]
[331856542,1720794702748,-804.2,0.00014246,2]
[331856543,1720794702756,-500.0,0.00014246,2]
[331856544,1720794702766,-861.95,0.00014246,2]
[331856545,1720794702775,-642.51,0.00014246,2]
[331856546,1720794702785,-695.85,0.00014246,2]
[331856547,1720794702795,-595.38,0.00014246,2]
[331856548,1720794702805,-947.63,0.00014246,2]
[331856549,1720794702814,-500.0,0.00014246,2]
[331856550,1720794702823,-500.0,0.00014246,2]
[331856551,1720794702833,-500.0,0.00014246,2]
[331856552,1720794702842,-505.8,0.00014246,2]
[331856553,1720794702851,-594.81,0.00014246,2]
[331856554,1720794702860,-1155.19,0.00014246,2]
[331856555,1720794702870,-544.81,0.00014246,2]
[331856556,1720794702879,-666.06,0.00014246,2]
[331856557,1720794702888,-500.0,0.00014246,2]
[331856558,1720794702898,-500.0,0.00014246,2]
[331856559,1720794702908,-500.0,0.00014246,2]
[331856560,1720794702917,-574.05,0.00014246,2]
[331856561,1720794702926,-713.58,0.00014246,2]
[331856562,1720794702936,-523.05,0.00014246,2]
[331856563,1720794702945,-563.94,0.00014246,2]
[331856564,1720794702954,-500.0,0.00014246,2]
[331856565,1720794702964,-500.0,0.00014246,2]
[331856566,1720794702975,-520.25,0.00014246,2]
[331856567,1720794702984,-712.83,0.00014246,2]
[331856568,1720794702993,-821.92,0.00014246,2]
[331856569,1720794703003,-1374.04,0.00014246,2]
[331856570,1720794703012,-687.92,0.00014246,2]
[331856571,1720794703022,-883.42,0.00014246,2]
[331856572,1720794703031,-517.54,0.00014246,2]
[331856573,1720794703040,-667.83,0.00014246,2]
[331856574,1720794703049,-500.0,0.00014246,2]
[331856575,1720794703058,-500.0,0.00014246,2]
[331856576,1720794703067,-1125.56,0.00014246,2]
[331856577,1720794703081,-804.76,0.00014246,2]
[331856578,1720794703090,-500.0,0.00014246,2]
[331856579,1720794703099,-861.99,0.00014246,2]
[331856580,1720794703109,-500.0,0.00014246,2]
[331856581,1720794703119,-500.0,0.00014246,2]
[331856582,1720794703128,-1018.26,0.00014246,2]
[331856583,1720794703137,-833.97,0.00014246,2]
[331856584,1720794703147,-492.34659626,0.00014246,2]
[331856585,1720794703157,-1246.88,0.00014246,2]
[331856586,1720794703167,-453.93,0.00014246,2]
[331856587,1720794703177,-500.0,0.00014246,2]
[331856588,1720794703186,-500.0,0.00014246,2]
[331856589,1720794703195,-500.0,0.00014246,2]
[331856590,1720794703204,-743.04,0.00014246,2]
[331856591,1720794703213,-500.0,0.00014246,2]
[331856592,1720794703227,-627.82,0.00014246,2]
[331856593,1720794703237,-500.0,0.00014246,2]
[331856594,1720794703247,-789.19,0.00014246,2]
[331856595,1720794703255,-564.93,0.00014246,2]
[331856596,1720794703265,-872.58,0.00014246,2]
[331856597,1720794703274,-500.0,0.00014246,2]
[331856598,1720794703283,-631.32,0.00014246,2]
[331856599,1720794703292,-500.0,0.00014246,2]
[331856600,1720794703301,-500.0,0.00014246,2]
[331856601,1720794703310,-1303.41,0.00014246,2]
[331856602,1720794703319,-987.74,0.00014246,2]
[331856603,1720794703329,-1057.82,0.00014246,2]
[331856604,1720794703337,-500.0,0.00014246,2]
[331856605,1720794703350,-500.0,0.00014246,2]
[331856606,1720794703361,-500.0,0.00014246,2]
[331856607,1720794703371,-741.61,0.00014246,2]
[331856608,1720794703381,-500.0,0.00014246,2]
[331856609,1720794703390,-759.54,0.00014246,2]
[331856610,1720794703399,-675.64,0.00014246,2]
[331856611,1720794703408,-546.31,0.00014246,2]
[331856612,1720794703418,-1372.87,0.00014246,2]
[331856613,1720794703428,-500.0,0.00014246,2]
[331856614,1720794703438,-500.0,0.00014246,2]
[331856615,1720794703448,-507.78,0.00014246,2]
[331856616,1720794703459,-851.8,0.00014246,2]
[331856617,1720794703469,-1083.36,0.00014246,2]
[331856618,1720794703626,-500.0,0.00014246,2]
[331856619,1720794703636,-500.0,0.00014246,2]
[331856620,1720794703645,-519.29,0.00014246,2]
[331856621,1720794703655,-500.0,0.00014246,2]
[331856622,1720794703665,-733.47,0.00014246,2]
[331856623,1720794703674,-500.0,0.00014246,2]
[331856624,1720794703683,-628.29,0.00014246,2]
[331856625,1720794703692,-500.0,0.00014246,2]
[331856626,1720794703702,-500.0,0.00014246,2]
[331856627,1720794703711,-1269.7,0.00014246,2]
[331856628,1720794703723,-500.0,0.00014246,2]
[331856629,1720794703733,-1162.35,0.00014246,2]
[331856630,1720794703742,-500.0,0.00014246,2]
[331856631,1720794703752,-1140.36,0.00014246,2]
[331856632,1720794703762,-988.4,0.00014246,2]
[331856633,1720794703772,-582.01,0.00014246,2]
[331856634,1720794703782,-1188.5,0.00014246,2]
[331856635,1720794703791,-742.99,0.00014246,2]
[331856636,1720794703801,-500.0,0.00014246,2]
[331856637,1720794703812,-500.0,0.00014246,2]
[331856638,1720794703821,-500.0,0.00014246,2]
[331856639,1720794703831,-641.89,0.00014246,2]
[331856640,1720794703840,-782.48,0.00014246,2]
[331856641,1720794703850,-500.0,0.00014246,2]
[331856642,1720794703859,-500.0,0.00014246,2]
[331856643,1720794703868,-500.0,0.00014246,2]
[331856644,1720794703878,-648.56,0.00014246,2]
[331856645,1720794703887,-621.66,0.00014246,2]
[331856646,1720794703897,-455.55965745,0.00014246,2]
[331856647,1720794703907,-837.4,0.00014246,2]
[331856648,1720794703916,-500.0,0.00014246,2]
[331856649,1720794703926,-500.0,0.00014246,2]
[331856650,1720794703935,-1217.56,0.00014246,2]
[331856651,1720794703945,-500.0,0.00014246,2]
[331856652,1720794703955,-819.84,0.00014246,2]
[331856653,1720794703965,-500.0,0.00014246,2]
[331856654,1720794703977,-500.0,0.00014246,2]
[331856655,1720794703986,-1064.23,0.00014246,2]
[331856656,1720794703996,-500.0,0.00014246,2]
[331856657,1720794704005,-4271.54,0.00014246,2]
[331856658,1720794704015,-1838.14,0.00014246,2]
[331856659,1720794704025,-989.52,0.00014246,2]
[331856660,1720794704035,-500.0,0.00014246,2]
[331856661,1720794704045,-362.85478935,0.00014246,2]
[331856662,1720794704054,-1038.55,0.00014246,2]
[331856663,1720794704064,-835.73,0.00014246,2]
[331856664,1720794704073,-500.0,0.00014246,2]
[331856665,1720794704084,-720.1,0.00014246,2]
[331856666,1720794704096,-903.17,0.00014246,2]
[331856667,1720794704105,-948.98,0.00014246,2]
[331856668,1720794704114,-852.64,0.00014246,2]
[331856669,1720794704124,-500.0,0.00014246,2]
[331856670,1720794704134,-500.0,0.00014246,2]
[331856671,1720794704144,-500.0,0.00014246,2]
[331856672,1720794704153,-540.42,0.00014246,2]
[331856673,1720794704164,-2299.04,0.00014246,2]
[331856674,1720794704173,-1111.09,0.00014246,2]
[331856675,1720794704182,-847.27,0.00014246,2]
[331856676,1720794704191,-500.0,0.00014246,2]
[331856677,1720794704201,-563.5,0.00014246,2]
[331856678,1720794704210,-1080.3,0.00014246,2]
[331856679,1720794704221,-500.0,0.00014246,2]
[331856680,1720794704231,-792.46,0.00014246,2]
[331856681,1720794704240,-1087.76,0.00014246,2]
[331856682,1720794704249,-777.64,0.00014246,2]
[331856683,1720794704259,-500.0,0.00014246,2]
[331856684,1720794704268,-500.0,0.00014246,2]
[331856685,1720794704277,-859.86,0.00014246,2]
[331856686,1720794704286,-595.98,0.00014246,2]
[331856687,1720794704295,-500.0,0.00014246,2]
[331856688,1720794704305,-966.7,0.00014246,2]
[331856689,1720794704314,-770.6,0.00014246,2]
[331856690,1720794704323,-500.0,0.00014246,2]
[331856691,1720794704332,-500.0,0.00014246,2]
[331856692,1720794704341,-1183.71,0.00014246,2]
[331856693,1720794704351,-1241.85,0.00014246,2]
[331856694,1720794704359,-500.0,0.00014246,2]
[331856695,1720794704368,-1004.68,0.00014246,2]
[331856696,1720794704378,-500.0,0.00014246,2]
[331856697,1720794704388,-955.42,0.00014246,2]